Workbook

Sheet Sales
A1: Date | B1: Invoice # | C1: Customer | D1: Total Amount | E1: GST Collected | F1: Net Sales
A2: 2025-10-01 | B2: INV1001 | C2: ABC Ltd | D2: 1130 | E2: =(D2/113)*13 -> 130 | F2: =D2-E2 -> 1000
A3: 2025-10-02 | B3: INV1002 | C3: Maple Inc. | D3: 2260 | E3: =(D3/113)*13 -> 260 | F3: =D3-E3 -> 2000
A4: 2025-10-03 | B4: INV1003 | C4: Westwood Co. | D4: 565 | E4: 65 | F4: 500
A5: 2025-10-04 | B5: INV1004 | C5: North Bay Ltd. | D5: 1695 | E5: 195 | F5: 1500
A6: 2025-10-05 | B6: INV1005 | C6: Greenfields | D6: 339 | E6: 39 | F6: 300
A7: 2025-10-06 | B7: INV1006 | C7: Lakeside Inc. | D7: 1130 | E7: 130 | F7: 1000
A8: 2025-10-07 | B8: INV1007 | C8: Summit Corp. | D8: 2260 | E8: 260 | F8: 2000
A9: 2025-10-08 | B9: INV1008 | C9: Polaris Group | D9: 565 | E9: 65 | F9: 500
A10: 2025-10-09 | B10: INV1009 | C10: NovaTech | D10: 1695 | E10: 195 | F10: 1500
A11: 2025-10-10 | B11: INV1010 | C11: Starline Ltd. | D11: 339 | E11: 39 | F11: 300
A12: 2025-10-11 | B12: INV1011 | C12: Redwood Inc. | D12: 1130 | E12: 130 | F12: 1000
A13: 2025-10-12 | B13: INV1012 | C13: Bluewater Co. | D13: 2260 | E13: 260 | F13: 2000

Sheet Purchases
A1: Date | B1: Invoice # | C1: Vendor | D1: Total Amount | E1: GST Paid | F1: Net Expense
A2: 2025-10-01 | B2: BIL2001 | C2: Staples Canada | D2: 113 | E2: =(D2/113)*13 -> 13 | F2: =D2-E2 -> 100
A3: 2025-10-02 | B3: BIL2002 | C3: Office Depot | D3: 226 | E3: =(D3/113)*13 -> 26 | F3: =D3-E3 -> 200
A4: 2025-10-03 | B4: BIL2003 | C4: Best Buy | D4: 565 | E4: 65 | F4: 500
A5: 2025-10-04 | B5: BIL2004 | C5: Amazon Business | D5: 169.5 | E5: 19.5 | F5: 150
A6: 2025-10-05 | B6: BIL2005 | C6: Grand & Toy | D6: 339 | E6: 39 | F6: 300
A7: 2025-10-06 | B7: BIL2006 | C7: Telus Mobility | D7: 113 | E7: 13 | F7: 100
A8: 2025-10-07 | B8: BIL2007 | C8: Canada Post | D8: 226 | E8: 26 | F8: 200
A9: 2025-10-08 | B9: BIL2008 | C9: Apple Canada | D9: 565 | E9: 65 | F9: 500
A10: 2025-10-09 | B10: BIL2009 | C10: Microsoft | D10: 169.5 | E10: 19.5 | F10: 150
A11: 2025-10-10 | B11: BIL2010 | C11: Petro-Canada | D11: 113 | E11: 13 | F11: 100
A12: 2025-10-11 | B12: BIL2011 | C12: Google Workspace | D12: 226 | E12: 26 | F12: 200
A13: 2025-10-12 | B13: BIL2012 | C13: Uber for Business | D13: 565 | E13: 65 | F13: 500

Sheet CRA
A1: Period | B1: GST Collected (from return) | C1: ITC Claimed (GST Paid) | D1: Net Tax Payable | E1: CRA Assessed | F1: CRA Payment / Refund
A2: 2025-10 | B2: 1768 | C2: 390 | D2: =B2-C2 -> 1378 | E2: 1,500 | F2: Payable

Sheet Summary Sheet
A1: Description | B1: Amount (CAD)
A2: GST Collected (Sales) | B2: =SUM(Sales!E2:E13) -> 1768
A3: GST Paid (Purchases) | B3: =SUM(Purchases!E2:E13) -> 390
A4: Net GST Payable | B4: =B2-B3 -> 1378
A5: CRA Assessed | B5: =CRA!E2 -> 1500
A6: Difference | B6: =ABS(B5-B4) -> 122
A7: Status | B7: =IF(B4=B5,"Reconciled","Check Data") -> Check Data

Sheet Adjustment Sheet
A1: Adjustment Type | B1: Amount (CAD) | C1: Direction | D1: Explanation
A2: Missed sales invoice | B2: 170 | C2: Increase | D2: Found an unrecorded taxable sale
A3: Ineligible ITC claimed | B3: 13 | C3: Decrease | D3: Personal purchase wrongly claimed
A4: CRA Adjustment | B4: 35 | C4: Decrease | D4: CRA disallowed part of an expense
A5: Total Adjustment | B5: =B2-B3-B4 -> 122 | C5: - | D5: Matches variance with CRA
